fUSD/lending_fUSD_20250124
["ID","MTS","AMOUNT","RATE_DAILY","PERIOD"]
[350212264,1737695450605,-500.0,0.00019443,2]
[350212265,1737695450614,-500.0,0.00019443,2]
[350212266,1737695450625,-500.0,0.00019443,2]
[350212267,1737695450635,-500.0,0.00019443,2]
[350212268,1737695450644,-500.0,0.00019443,2]
[350212269,1737695450654,-459.9226939,0.00019443,2]
[350212270,1737695450664,-505.12445783,0.00019443,2]
[350212271,1737695450675,-500.0,0.00019443,2]
[350212272,1737695450684,-500.0,0.00019443,2]
[350212273,1737695450693,-500.0,0.00019443,2]
[350212274,1737695450703,-500.0,0.00019443,2]
[350212275,1737695450712,-500.0,0.00019443,2]
[350212276,1737695450721,-500.0,0.00019443,2]
[350212277,1737695450731,-500.0,0.00019443,2]
[350212278,1737695450740,-461.65388333,0.00019443,2]
[350212279,1737695450749,-500.0,0.00019443,2]
[350212280,1737695450759,-500.0,0.00019443,2]
[350212281,1737695450767,-500.0,0.00019443,2]
[350212282,1737695450777,-500.0,0.00019443,2]
[350212283,1737695450786,-500.0,0.00019443,2]
[350212284,1737695450795,-500.0,0.00019443,2]
[350212285,1737695450804,-517.98863714,0.00019443,2]
[350212286,1737695450813,-500.0,0.00019443,2]
[350212287,1737695450823,-500.0,0.00019443,2]
[350212288,1737695450832,-500.0,0.00019443,2]
[350212289,1737695450841,-520.44658871,0.00019443,2]
[350212290,1737695450851,-526.25892507,0.00019443,2]
[350212291,1737695450860,-500.0,0.00019443,2]
[350212292,1737695450870,-500.0,0.00019443,2]
[350212293,1737695450880,-549.79503096,0.00019443,2]
[350212294,1737695450889,-500.0,0.00019443,2]
[350212295,1737695450899,-500.0,0.00019443,2]
[350212296,1737695450908,-500.0,0.00019443,2]
[350212297,1737695450918,-500.0,0.00019443,2]
[350212298,1737695450927,-500.0,0.00019443,2]
[350212299,1737695450936,-500.0,0.00019443,2]
[350212300,1737695450946,-504.04107531,0.00019443,2]
[350212301,1737695450956,-500.0,0.00019443,2]
[350212302,1737695450965,-500.0,0.00019443,2]
[350212303,1737695450974,-500.0,0.00019443,2]
[350212304,1737695450983,-500.0,0.00019443,2]
[350212305,1737695450993,-324.13144645,0.00019443,2]
[350212306,1737695451002,-500.0,0.00019443,2]
[350212307,1737695451011,-500.0,0.00019443,2]
[350212308,1737695451021,-500.0,0.00019443,2]
[350212309,1737695451030,-1000.0,0.00019443,30]
[350212310,1737695451039,-500.0,0.00019443,2]
[350212311,1737695451049,-501.36633223,0.00019443,2]
[350212312,1737695451058,-500.0,0.00019443,2]
[350212313,1737695451067,-500.0,0.00019443,2]
[350212314,1737695451076,-500.0,0.00019443,2]
[350212315,1737695451086,-500.0,0.00019443,2]
[350212316,1737695451095,-502.35893738,0.00019443,2]
[350212317,1737695451105,-500.0,0.00019443,2]
[350212318,1737695451115,-500.0,0.00019443,2]
[350212319,1737695451124,-500.0,0.00019443,2]
[350212320,1737695451133,-500.0,0.00019443,2]
[350212321,1737695451142,-500.0,0.00019443,2]
[350212322,1737695451151,-500.0,0.00019443,2]
[350212323,1737695451160,-500.0,0.00019443,2]
[350212324,1737695451170,-500.0,0.00019443,2]
[350212325,1737695451179,-500.0,0.00019443,2]
[350212326,1737695451188,-500.0,0.00019443,2]
[350212327,1737695451198,-500.0,0.00019443,2]
[350212328,1737695451207,-500.0,0.00019443,2]
[350212329,1737695451217,-511.93347824,0.00019443,2]
[350212330,1737695451226,-500.0,0.00019443,2]
[350212331,1737695451236,-500.0,0.00019443,2]
[350212332,1737695451245,-500.0,0.00019443,2]
[350212333,1737695451254,-500.0,0.00019443,2]
[350212334,1737695451263,-503.18119833,0.00019443,2]
[350212335,1737695451272,-500.0,0.00019443,2]
[350212336,1737695451282,-500.0,0.00019443,2]
[350212337,1737695451291,-500.0,0.00019443,2]
[350212338,1737695451300,-500.0,0.00019443,2]
[350212339,1737695451310,-341.17202874,0.00019443,2]
[350212340,1737695451319,-500.0,0.00019443,2]
[350212341,1737695451328,-500.0,0.00019443,2]
[350212342,1737695451337,-500.0,0.00019443,2]
[350212343,1737695451480,-508.92331939,0.00019443,2]
[350212344,1737695451490,-500.0,0.00019443,2]
[350212345,1737695451499,-500.0,0.00019443,2]
[350212346,1737695451509,-500.0,0.00019443,2]
[350212347,1737695451518,-500.0,0.00019443,2]
[350212348,1737695451527,-500.0,0.00019443,2]
[350212349,1737695451538,-500.0,0.00019443,2]
[350212350,1737695451549,-500.0,0.00019443,2]
[350212351,1737695451559,-500.0,0.00019443,2]
[350212352,1737695451568,-500.0,0.00019443,2]
[350212353,1737695451578,-500.0,0.00019443,2]
[350212354,1737695451589,-508.75770382,0.00019443,2]
[350212355,1737695451598,-500.0,0.00019443,2]
[350212356,1737695451607,-500.0,0.00019443,2]
[350212357,1737695451616,-500.0,0.00019443,2]
[350212358,1737695451626,-500.0,0.00019443,2]
[350212359,1737695451635,-500.0,0.00019443,2]
[350212360,1737695451643,-500.0,0.00019443,2]
[350212361,1737695451652,-500.0,0.00019443,2]
[350212362,1737695451661,-500.0,0.00019443,2]
[350212363,1737695451670,-500.0,0.00019443,2]
[350212364,1737695451679,-500.0,0.00019443,2]
[350212365,1737695451688,-500.0,0.00019443,2]
[350212366,1737695451697,-500.0,0.00019443,2]
[350212367,1737695451706,-500.0,0.00019443,2]
[350212368,1737695451715,-500.0,0.00019443,2]
[350212369,1737695451724,-504.07704506,0.00019443,2]
[350212370,1737695451733,-500.0,0.00019443,2]
[350212371,1737695451742,-500.0,0.00019443,2]
[350212372,1737695451751,-500.0,0.00019443,2]
[350212373,1737695451760,-500.0,0.00019443,2]
[350212374,1737695451769,-500.0,0.00019443,2]
[350212375,1737695451779,-604.45047727,0.00019443,2]
[350212376,1737695451788,-500.0,0.00019443,2]
[350212377,1737695451797,-500.0,0.00019443,2]
[350212378,1737695451806,-500.0,0.00019443,2]
[350212379,1737695451815,-500.0,0.00019443,2]
[350212380,1737695451825,-548.15500501,0.00019443,2]
[350212381,1737695451834,-500.0,0.00019443,2]
[350212382,1737695451844,-500.0,0.00019443,2]
[350212383,1737695451853,-500.0,0.00019443,2]
[350212384,1737695451863,-500.0,0.00019443,2]
[350212385,1737695451872,-500.0,0.00019443,2]
[350212386,1737695451881,-508.8896957,0.00019443,2]
[350212387,1737695451892,-500.0,0.00019443,2]
[350212388,1737695451902,-500.0,0.00019443,2]
[350212389,1737695451912,-500.0,0.00019443,2]
[350212390,1737695451922,-500.0,0.00019443,2]
[350212391,1737695451931,-500.0,0.00019443,2]
[350212392,1737695451940,-500.0,0.00019443,2]
[350212393,1737695451950,-500.0,0.00019443,2]
[350212394,1737695451959,-500.0,0.00019443,2]
[350212395,1737695451968,-500.0,0.00019443,2]
[350212396,1737695451977,-500.0,0.00019443,2]
[350212397,1737695451985,-500.0,0.00019443,2]
[350212398,1737695451995,-500.0,0.00019443,2]
[350212399,1737695452003,-500.0,0.00019443,2]
[350212400,1737695452012,-522.88208089,0.00019443,2]
[350212401,1737695452021,-500.0,0.00019443,2]
[350212402,1737695452031,-500.0,0.00019443,2]
[350212403,1737695452039,-528.04,0.00019443,2]
[350212404,1737695452048,-500.0,0.00019443,2]
[350212405,1737695452057,-500.0,0.00019443,2]
[350212406,1737695452066,-767.31,0.00019443,2]
[350212407,1737695452076,-500.0,0.00019443,2]
[350212408,1737695452085,-500.0,0.00019443,2]
[350212409,1737695452094,-500.0,0.00019443,2]
[350212410,1737695452103,-1759.05,0.00019443,2]
[350212411,1737695452111,-500.0,0.00019443,2]
[350212412,1737695452120,-500.0,0.00019443,2]
[350212413,1737695452129,-500.0,0.00019443,2]
[350212414,1737695452138,-2848.7,0.00019443,2]
[350212415,1737695452147,-500.0,0.00019443,2]
[350212416,1737695452156,-500.0,0.00019443,2]
[350212417,1737695452165,-500.0,0.00019443,2]
[350212418,1737695452174,-500.0,0.00019443,2]
[350212419,1737695452183,-500.0,0.00019443,2]
[350212420,1737695452193,-500.0,0.00019443,2]
[350212421,1737695452202,-500.0,0.00019443,2]
[350212422,1737695452211,-500.0,0.00019443,2]
[350212423,1737695452220,-500.0,0.00019443,2]
[350212424,1737695452229,-500.0,0.00019443,2]
[350212425,1737695452238,-500.0,0.00019443,2]
[350212426,1737695452248,-789.6,0.00019443,2]
[350212427,1737695452257,-500.0,0.00019443,2]
[350212428,1737695452266,-500.0,0.00019443,2]
[350212429,1737695452276,-500.0,0.00019443,2]
[350212430,1737695452285,-500.0,0.00019443,2]
[350212431,1737695452297,-500.0,0.00019443,2]
[350212432,1737695452307,-500.0,0.00019443,2]
[350212433,1737695452316,-500.0,0.00019443,2]
[350212434,1737695452326,-500.0,0.00019443,2]
[350212435,1737695452335,-500.0,0.00019443,2]
[350212436,1737695452345,-500.0,0.00019443,2]
[350212437,1737695452354,-500.0,0.00019443,2]
[350212438,1737695452363,-500.0,0.00019443,2]
[350212439,1737695452372,-321.54546504,0.00019443,2]
[350212440,1737695452382,-500.0,0.00019443,2]
[350212441,1737695452391,-500.0,0.00019443,2]
[350212442,1737695452399,-500.0,0.00019443,2]
[350212443,1737695452408,-500.0,0.00019443,2]
[350212444,1737695452417,-500.0,0.00019443,2]
[350212445,1737695452427,-500.0,0.00019443,2]
[350212446,1737695452436,-500.0,0.00019443,2]
[350212447,1737695452448,-500.0,0.00019443,2]
[350212448,1737695452458,-509.12232933,0.00019443,2]
[350212449,1737695452467,-1000.0,0.00019443,2]
[350212450,1737695452477,-509.34568959,0.00019443,2]
[350212451,1737695452487,-500.0,0.00019443,2]
[350212452,1737695452495,-500.0,0.00019443,2]
[350212453,1737695452505,-500.0,0.00019443,2]
[350212454,1737695452514,-500.0,0.00019443,2]
[350212455,1737695452524,-500.0,0.00019443,2]
[350212456,1737695452533,-500.0,0.00019443,2]
[350212457,1737695452543,-584.64,0.00019443,2]
[350212458,1737695452552,-500.0,0.00019443,2]
[350212459,1737695452561,-500.0,0.00019443,2]
[350212460,1737695452570,-500.0,0.00019443,2]
[350212461,1737695452582,-500.0,0.00019443,2]
[350212462,1737695452595,-500.0,0.00019443,2]
[350212463,1737695452604,-500.0,0.00019443,2]
[350212464,1737695452615,-738.31,0.00019443,2]
[350212465,1737695452624,-500.0,0.00019443,2]
[350212466,1737695452634,-500.0,0.00019443,2]
[350212467,1737695452642,-500.0,0.00019443,2]
[350212468,1737695452653,-500.0,0.00019443,2]
[350212469,1737695452664,-500.0,0.00019443,2]
[350212470,1737695452674,-573.83129436,0.00019443,2]
[350212471,1737695452683,-500.0,0.00019443,2]
[350212472,1737695452692,-500.0,0.00019443,2]
[350212473,1737695452702,-500.0,0.00019443,2]
[350212474,1737695452711,-500.0,0.00019443,2]
[350212475,1737695452720,-500.0,0.00019443,2]
[350212476,1737695452730,-500.0,0.00019443,2]
[350212477,1737695452739,-500.0,0.00019443,2]
[350212478,1737695452748,-500.0,0.00019443,2]
[350212479,1737695452757,-500.0,0.00019443,2]
[350212480,1737695452766,-501.92892933,0.00019443,2]
[350212481,1737695452775,-500.0,0.00019443,2]
[350212482,1737695452784,-500.0,0.00019443,2]
[350212483,1737695452793,-500.0,0.00019443,2]
[350212484,1737695452802,-500.0,0.00019443,2]
[350212485,1737695452811,-500.0,0.00019443,2]
[350212486,1737695452820,-500.0,0.00019443,2]
[350212487,1737695452829,-500.0,0.00019444,2]
[350212488,1737695452839,-500.0,0.00019444,2]
[350212489,1737695452847,-500.0,0.00019444,2]
[350212490,1737695452856,-500.0,0.00019444,2]
[350212491,1737695452866,-500.0,0.00019444,2]
[350212492,1737695452875,-500.0,0.00019444,2]
[350212493,1737695452885,-524.39045472,0.00019444,2]
[350212494,1737695452895,-500.0,0.00019444,2]
[350212495,1737695452904,-500.0,0.00019444,2]
[350212496,1737695452913,-500.0,0.00019444,2]
[350212497,1737695452922,-500.0,0.00019444,2]
[350212498,1737695452931,-500.0,0.00019444,2]
[350212499,1737695452940,-500.0,0.00019444,2]
[350212500,1737695452951,-500.0,0.00019444,2]
[350212501,1737695452961,-500.0,0.00019444,2]
[350212502,1737695452970,-500.0,0.00019444,2]
[350212503,1737695452980,-500.0,0.00019444,2]
[350212504,1737695452989,-500.0,0.00019444,2]
[350212505,1737695452998,-163.72712446,0.00019444,2]
[350212506,1737695453007,-500.0,0.00019444,2]
[350212507,1737695453016,-210.43,0.00019444,2]
[350212508,1737695453026,-421.94975796,0.00019444,2]
[350212509,1737695453034,-413.20923224,0.00019444,2]
[350212510,1737695453044,-500.0,0.00019444,2]
[350212511,1737695453053,-500.0,0.00019444,2]
[350212512,1737695453063,-500.0,0.00019444,2]
[350212513,1737695453071,-500.0,0.00019444,2]
[350212514,1737695453080,-500.0,0.00019444,2]
[350212515,1737695453090,-1590.81,0.00019444,2]
[350212516,1737695453099,-701.28,0.00019444,2]
[350212517,1737695453108,-500.0,0.00019444,2]
[350212518,1737695453117,-849.95,0.00019444,2]
[350212519,1737695453126,-771.87,0.00019444,2]
[350212520,1737695453135,-520.36,0.00019444,2]
[350212521,1737695453144,-1391.43,0.00019444,2]
[350212522,1737695453153,-500.0,0.00019444,2]
[350212523,1737695453162,-500.0,0.00019444,2]
[350212524,1737695453171,-1280.97,0.00019444,2]
[350212525,1737695453181,-500.0,0.00019444,2]
[350212526,1737695453190,-1151.73,0.00019444,2]
[350212527,1737695453199,-2406.41,0.00019444,2]
[350212528,1737695453208,-500.0,0.00019444,2]
[350212529,1737695453217,-554.8,0.00019444,2]
[350212530,1737695453227,-294.11586958,0.00019444,2]
[350212531,1737695453236,-500.0,0.00019444,2]
[350212532,1737695453245,-500.0,0.00019444,2]
[350212533,1737695453254,-510.92497623,0.00019444,2]
[350212534,1737695453264,-500.0,0.00019444,2]
[350212535,1737695453273,-500.0,0.00019444,2]
[350212536,1737695453282,-635.34,0.00019444,2]
[350212537,1737695453291,-868.92,0.00019444,2]
[350212538,1737695453300,-573.7626421,0.00019444,2]
[350212539,1737695453310,-500.0,0.00019444,2]
[350212540,1737695453319,-500.0,0.00019444,2]
[350212541,1737695453328,-500.0,0.00019444,2]
[350212542,1737695453338,-935.83,0.00019444,2]
[350212543,1737695453347,-500.0,0.00019444,2]
[350212544,1737695453356,-500.0,0.00019444,2]
[350212545,1737695453365,-500.0,0.00019444,2]
[350212546,1737695453374,-500.0,0.00019444,2]
[350212547,1737695453384,-1230.87,0.00019444,2]
[350212548,1737695453393,-500.0,0.00019444,2]
[350212549,1737695453402,-442.255708,0.00019444,2]
[350212550,1737695453411,-143.56639682,0.00019445,2]
[350212551,1737695453437,-492.61562124,0.00019445,2]
[350212552,1737695453446,-346.23607567,0.00019445,2]
[350212556,1737696410584,900.0,0.00015,16]
[350212573,1737696631911,-900.0,0.00014,3]
[350212575,1737696631921,-550.0,0.00015,2]
[350212577,1737696631932,-900.0,0.00015,3]
[350212578,1737696631941,-583.61683963,0.00015,2]
[350212579,1737696631955,-900.0,0.00016,17]
[350212580,1737696631963,-543.79,0.0001645,2]
[350212581,1737696631972,-891.82953899,0.00016899,2]
[350212582,1737696631981,-600.0,0.00017,2]
[350212583,1737696631991,-900.0,0.00017,18]
[350212584,1737696632000,-249.27,0.00017825,2]
[350212585,1737696632009,-300.0,0.00017828,2]
[350212586,1737696632018,-2267.79,0.00017829,2]
[350212587,1737696632027,-900.0,0.00018,19]
[350212588,1737696632038,-250.0,0.00018084,2]
[350212589,1737696632047,-2319.90736238,0.00018207,2]
[350212590,1737696632056,-250.0,0.00018267,2]
[350212591,1737696632065,-233.22,0.00018287,2]
[350212592,1737696632073,-1000.0,0.00018307,2]
[350212593,1737696632083,-2319.90736239,0.00018358,2]
[350212594,1737696632092,-1571.36,0.00018393,2]
[350212595,1737696632101,-167.66,0.00018417,2]
[350212596,1737696632111,-246.8,0.00018448,2]
[350212597,1737696632120,-4006.87,0.00018458,2]
[350212598,1737696632130,-18415.0,0.00018463,7]
[350212599,1737696632139,-1339.842,0.00018468,2]
[350212600,1737696632148,-181.92610789,0.00018468,2]
[350212601,1737696632157,-875.58,0.00018678,2]
[350212602,1737696632167,-150.0,0.00018678,2]
[350212603,1737696632178,-875.5,0.00018678,2]
[350212604,1737696632187,-543.79,0.00018713,2]
[350212605,1737696632196,-1008.75023516,0.00018998,2]
[350212606,1737696632206,-500.0,0.00018999,2]
[350212607,1737696632216,-500.0,0.00018999,2]
[350212608,1737696632225,-500.0,0.00018999,2]
[350212609,1737696632235,-510.18344547,0.00018999,2]
[350212610,1737696632244,-500.0,0.00018999,2]
[350212611,1737696632253,-500.0,0.00018999,2]
[350212612,1737696632262,-500.0,0.00018999,2]
[350212613,1737696632273,-500.0,0.00018999,2]
[350212614,1737696632283,-500.0,0.00018999,2]
[350212615,1737696632291,-394.88,0.00018999,2]
[350212616,1737696632300,-500.0,0.00018999,2]
[350212617,1737696632309,-334.36,0.00018999,2]
[350212618,1737696632318,-500.0,0.00018999,2]
[350212619,1737696632327,-500.0,0.00018999,2]
[350212620,1737696632336,-599.25,0.00018999,2]
[350212621,1737696632346,-900.0,0.00019,20]
[350212622,1737696632355,-2019.0,0.00019078,2]
[350212623,1737696632364,-150.0,0.00019078,2]
[350212624,1737696632373,-638.0,0.00019078,2]
[350212625,1737696632382,-328.9248917,0.00019104,2]
[350212626,1737696632392,-500.0,0.00019164,2]
[350212627,1737696632401,-600.0,0.00019164,2]
[350212628,1737696632411,-500.0,0.0001917,2]
[350212629,1737696632420,-500.0,0.0001917,2]
[350212630,1737696632432,-500.0,0.0001917,2]
[350212631,1737696632441,-500.0,0.0001917,2]
[350212632,1737696632451,-500.0,0.0001917,2]
[350212633,1737696632460,-500.0,0.0001917,2]
[350212634,1737696632468,-500.0,0.0001917,2]
[350212635,1737696632478,-500.0,0.0001917,2]
[350212636,1737696632488,-500.0,0.0001917,2]
[350212637,1737696632497,-150.0,0.0001926,2]
[350212638,1737696632507,-197.76324227,0.00019273,2]
[350212639,1737696632516,-500.0,0.00019273,2]
[350212640,1737696632525,-990.0,0.00019273,2]
[350212641,1737696632535,-500.0,0.00019273,2]
[350212642,1737696632545,-500.0,0.00019273,2]
[350212643,1737696632554,-500.0,0.00019273,2]
[350212645,1737696632562,-500.0,0.00019273,2]
[350212647,1737696632571,-500.0,0.00019273,2]
[350212649,1737696632580,-500.0,0.00019273,2]
[350212651,1737696632590,-500.0,0.00019273,2]
[350212653,1737696632599,-500.0,0.00019273,2]
[350212656,1737696632608,-563.33626196,0.00019273,2]
[350212658,1737696632617,-500.0,0.00019273,2]
[350212660,1737696632626,-500.0,0.00019273,2]
[350212662,1737696632635,-500.0,0.00019273,2]
[350212663,1737696632644,-500.0,0.00019273,2]
[350212664,1737696632653,-500.0,0.00019273,2]
[350212665,1737696632662,-500.0,0.00019273,2]
[350212666,1737696632671,-500.0,0.00019273,2]
[350212667,1737696632682,-500.0,0.00019273,2]
[350212668,1737696632691,-500.0,0.00019273,2]
[350212669,1737696632700,-899.0,0.00019273,2]
[350212670,1737696632709,-13603.61577964,0.0001931,2]
[350212671,1737696632719,-500.0,0.00019341,2]
[350212672,1737696632728,-872.82045938,0.00019342,2]
[350212673,1737696632737,-984.31016472,0.00019342,2]
[350212674,1737696632746,-164.29648912,0.000194,2]
[350212675,1737696632755,-5430.38199638,0.000194,2]
[350212676,1737696632764,-872.82045931,0.00019402,2]
[350212677,1737696632773,-984.31016465,0.00019402,2]
[350212678,1737696632782,-234.42,0.0001943,2]
[350212679,1737696632791,-500.0,0.00019435,2]
[350212680,1737696632800,-163.28418411,0.00019435,2]
[350212681,1737696632810,-500.0,0.00019435,2]
[350212682,1737696632818,-500.0,0.00019435,2]
[350212683,1737696632827,-500.0,0.00019439,2]
[350212684,1737696632836,-500.0,0.00019439,2]
[350212685,1737696632845,-500.0,0.00019439,2]
[350212686,1737696632854,-500.0,0.00019439,2]
[350212687,1737696632864,-500.0,0.00019439,2]
[350212688,1737696632873,-1601.04,0.00019439,2]
[350212689,1737696632882,-694.31,0.00019439,2]
[350212690,1737696632891,-826.19,0.00019439,2]
[350212691,1737696632900,-500.0,0.00019439,2]
[350212692,1737696632909,-532.68,0.00019439,2]
[350212693,1737696632918,-769.49,0.00019439,2]
[350212694,1737696632928,-500.0,0.00019439,2]
[350212695,1737696632938,-500.0,0.00019439,2]
[350212696,1737696632948,-1367.01,0.00019439,2]
[350212697,1737696632962,-1157.15,0.00019439,2]
[350212698,1737696632971,-1256.08,0.00019439,2]
[350212699,1737696632980,-500.0,0.00019439,2]
[350212700,1737696632989,-500.0,0.00019439,2]
[350212701,1737696632999,-1169.48,0.00019439,2]
[350212702,1737696633008,-500.0,0.00019439,2]
[350212703,1737696633017,-551.41,0.00019439,2]
[350212704,1737696633027,-500.0,0.00019439,2]
[350212705,1737696633037,-500.0,0.00019439,2]
[350212706,1737696633047,-500.0,0.00019439,2]
[350212707,1737696633056,-416.02532081,0.00019439,2]
[350212708,1737696633069,-83.97467919,0.00019439,2]
[350212709,1737696633078,-500.0,0.00019439,2]
[350212710,1737696633087,-635.64,0.00019439,2]
[350212711,1737696633095,-796.51,0.00019439,2]
[350212712,1737696633105,-500.0,0.00019439,2]
[350212713,1737696633115,-500.0,0.00019439,2]
[350212714,1737696633125,-500.0,0.00019439,2]
[350212715,1737696633134,-500.0,0.00019439,2]
[350212716,1737696633144,-857.85,0.00019439,2]
[350212717,1737696633153,-500.0,0.00019439,2]
[350212718,1737696633163,-500.0,0.00019439,2]
[350212719,1737696633172,-500.0,0.00019439,2]
[350212720,1737696633184,-1690.04,0.00019439,2]
[350212721,1737696633194,-500.0,0.00019439,2]
[350212722,1737696633418,-500.0,0.00019439,2]
[350212723,1737696633431,-482.04728285,0.00019439,2]
[350212724,1737696633441,-500.0,0.00019439,2]
[350212725,1737696633451,-500.0,0.00019439,2]
[350212726,1737696633461,-152213.09543895,0.0001944,2]
[350212727,1737696633471,-500.0,0.00019442,2]
[350212728,1737696633480,-500.0,0.00019442,2]
[350212729,1737696633491,-500.0,0.00019442,2]
[350212730,1737696633500,-500.0,0.00019442,2]
[350212731,1737696633510,-500.0,0.00019442,2]
[350212732,1737696633520,-500.0,0.00019442,2]
[350212733,1737696633529,-500.0,0.00019442,2]
[350212734,1737696633539,-500.0,0.00019442,2]
[350212735,1737696633548,-500.0,0.00019442,2]
[350212736,1737696633558,-500.0,0.00019442,2]
[350212737,1737696633567,-500.0,0.00019442,2]
[350212738,1737696633576,-500.0,0.00019442,2]
[350212739,1737696633586,-500.0,0.00019442,2]
[350212740,1737696633596,-500.0,0.00019442,2]
[350212741,1737696633605,-500.0,0.00019442,2]
[350212742,1737696633615,-564.6,0.00019442,2]
[350212743,1737696633624,-334.15878126,0.00019442,2]
[350212744,1737696633633,-500.0,0.00019442,2]
[350212745,1737696633642,-500.0,0.00019442,2]
[350212746,1737696633652,-500.0,0.00019442,2]
[350212747,1737696633661,-500.0,0.00019442,2]
[350212748,1737696633670,-500.0,0.00019442,2]
[350212749,1737696633682,-500.0,0.00019442,2]
[350212750,1737696633691,-500.0,0.00019442,2]
[350212751,1737696633701,-500.0,0.00019442,2]
[350212752,1737696633711,-609.733,0.00019442,2]
[350212753,1737696633721,-193.41697896,0.00019442,2]
[350212754,1737696633731,-500.0,0.00019442,2]
[350212755,1737696633740,-500.0,0.00019442,2]
[350212756,1737696633750,-500.0,0.00019442,2]
[350212757,1737696633759,-500.0,0.00019442,2]
[350212758,1737696633769,-500.0,0.00019442,2]
[350212759,1737696633778,-500.0,0.00019442,2]
[350212760,1737696633787,-500.0,0.00019442,2]
[350212761,1737696633797,-495.475034,0.00019442,2]
[350212762,1737696633807,-500.0,0.00019442,2]
[350212763,1737696633816,-500.0,0.00019442,2]
[350212764,1737696633825,-500.0,0.00019442,2]
[350212765,1737696633835,-156.400212,0.00019442,2]
[350212766,1737696633844,-500.0,0.00019442,2]
[350212767,1737696633854,-500.0,0.00019442,2]
[350212768,1737696633863,-500.0,0.00019442,2]
[350212769,1737696633872,-500.0,0.00019442,2]
[350212770,1737696633881,-500.0,0.00019442,2]
[350212771,1737696633890,-500.0,0.00019442,2]
[350212772,1737696633899,-500.0,0.00019442,2]
[350212773,1737696633909,-526.48044,0.00019442,2]
[350212774,1737696633918,-500.0,0.00019442,2]
[350212775,1737696633927,-500.0,0.00019442,2]
[350212776,1737696633938,-500.0,0.00019442,2]
[350212777,1737696633948,-500.0,0.00019442,2]
[350212778,1737696633961,-500.0,0.00019442,2]
[350212779,1737696633970,-500.0,0.00019442,2]
[350212780,1737696633980,-500.0,0.00019442,2]
[350212781,1737696633989,-532.32,0.00019442,2]
[350212782,1737696634000,-500.0,0.00019442,2]
[350212783,1737696634009,-647.88,0.00019442,2]
[350212784,1737696634019,-154.87,0.00019442,2]
[350212785,1737696634028,-500.0,0.00019442,2]
[350212786,1737696634038,-500.0,0.00019442,2]
[350212787,1737696634047,-500.0,0.00019442,2]
[350212788,1737696634058,-500.0,0.00019442,2]
[350212789,1737696634068,-500.0,0.00019442,2]
[350212790,1737696634077,-500.0,0.00019442,2]
[350212791,1737696634086,-501.02885426,0.00019442,2]
[350212792,1737696634095,-500.0,0.00019442,2]
[350212793,1737696634105,-500.0,0.00019442,2]
[350212794,1737696634114,-500.0,0.00019442,2]